bitfinex/quotes_SOLUSD_20250601
["timestamp","ask_amount","ask_price","bid_price","bid_amount"]
[1748761277632,6.46161798,154.76,154.73,14.69844763]
[1748761277838,6.46161798,154.76,154.72,15.57033616]
[1748761278820,21.16006561,154.76,154.72,0.87188853]
[1748761279026,6.46161798,154.76,154.72,15.57033616]
[1748761281741,6.46161798,154.76,154.72,0.87188853]
[1748761281929,6.46161798,154.76,154.73,14.69844763]
[1748761282721,6.46161798,154.76,154.72,15.57033616]
[1748761283134,6.46161798,154.76,154.73,14.69844763]
[1748761283647,6.46132966,154.77,154.73,14.69844763]
[1748761283847,14.69844763,154.79,154.75,14.69844763]
[1748761284018,53.87844763,154.79,154.75,14.69844763]
[1748761284218,14.69844763,154.77,154.73,14.69844763]
[1748761285430,21.15984939,154.77,154.73,14.69844763]
[1748761287250,6.46140176,154.77,154.73,14.69844763]
[1748761288742,14.69844763,154.76,154.72,0.87188853]
[1748761288918,14.69844763,154.74,154.72,0.87188853]
[1748761289755,53.89844763,154.75,154.72,0.87188853]
[1748761290738,6.46245314,154.74,154.72,0.87188853]
[1748761291450,39.2,154.75,154.72,15.57033616]
[1748761291650,21.15881328,154.79,154.74,14.69844763]
[1748761291851,6.46036565,154.79,154.76,14.69844763]
[1748761296450,24.71844763,154.8,154.77,14.69844763]
[1748761296451,10.02,154.8,154.77,14.69844763]
[1748761296961,10.02,154.8,154.78,14.69844763]
[1748761297555,31.17851209,154.8,154.76,14.69844763]
[1748761298131,31.17851209,154.8,154.75,14.69844763]
[1748761298831,31.17851209,154.8,154.76,14.69844763]
[1748761302936,14.69844763,154.79,154.75,14.69844763]
[1748761303137,14.69844763,154.79,154.74,14.69844763]
[1748761303365,14.69844763,154.78,154.73,14.69844763]
[1748761303869,14.69844763,154.77,154.73,14.69844763]
[1748761304044,14.69844763,154.76,154.72,0.87188853]
[1748761304941,6.46203554,154.75,154.72,0.87188853]
[1748761307264,14.69844763,154.74,154.72,0.87188853]
[1748761307754,53.93844763,154.73,154.72,0.87188853]
[1748761309168,60.40131843,154.73,154.72,0.87188853]
[1748761311370,45.7028708,154.73,154.72,0.87188853]
[1748761311574,60.40131843,154.73,154.72,0.87188853]
[1748761316881,6.46252376,154.74,154.72,0.87188853]
[1748761317072,16.48214883,154.75,154.72,0.87188853]
[1748761317263,55.72214883,154.75,154.72,0.87188853]
[1748761318276,16.48214883,154.75,154.72,0.87188853]
[1748761318460,55.72214883,154.75,154.72,0.87188853]
[1748761318867,70.42059646,154.75,154.72,0.87188853]
[1748761319919,14.69844763,154.74,154.72,0.87188853]
[1748761321695,21.16129265,154.74,154.72,0.87188853]
[1748761323159,14.69844763,154.73,154.72,0.87188853]
[1748761324799,6.4628708,154.73,154.72,0.87188853]
[1748761325995,10.02,154.75,154.72,15.57033616]
[1748761326197,24.75844763,154.79,154.74,14.69844763]
[1748761326403,24.75844763,154.79,154.75,14.69844763]
[1748761326579,63.97844763,154.79,154.75,14.69844763]
[1748761326778,63.97844763,154.79,154.74,14.69844763]
[1748761327191,6.46089206,154.78,154.74,14.69844763]
[1748761327416,21.15933969,154.78,154.74,14.69844763]
[1748761327608,14.69844763,154.77,154.73,14.69844763]
[1748761327897,14.69844763,154.77,154.72,15.57033616]
[1748761328099,14.69844763,154.76,154.72,0.87188853]
[1748761328382,14.69844763,154.74,154.72,0.87188853]
[1748761328784,53.93844763,154.75,154.72,0.87188853]
[1748761328979,39.24,154.75,154.72,0.87188853]
[1748761330792,45.70221593,154.75,154.72,0.87188853]
[1748761332518,39.24,154.75,154.72,0.87188853]
[1748761332724,39.24,154.75,154.72,15.57033616]
[1748761333104,45.70206909,154.75,154.72,0.87188853]
[1748761333314,45.70206909,154.75,154.72,15.57033616]
[1748761333501,39.24,154.75,154.72,15.57033616]
[1748761334821,14.69844763,154.73,154.72,0.87188853]
[1748761335019,21.16131843,154.73,154.72,0.87188853]
[1748761342043,60.44131843,154.73,154.72,0.87188853]
[1748761347756,21.16131843,154.73,154.72,0.87188853]
[1748761347955,60.42131843,154.73,154.72,0.87188853]
[1748761349534,45.7228708,154.73,154.72,0.87188853]
[1748761352244,10.06,154.74,154.72,0.87188853]
[1748761352758,24.75844763,154.74,154.72,0.87188853]
[1748761353135,14.69844763,154.74,154.72,0.87188853]
[1748761354065,21.1609084,154.74,154.72,0.87188853]
[1748761355263,6.46246077,154.74,154.72,0.87188853]
[1748761357034,21.1609084,154.74,154.72,0.87188853]
[1748761357742,14.8406092,154.73,154.72,0.87188853]
[1748761358465,21.30348,154.73,154.72,0.87188853]
[1748761363877,54.79373806,154.73,154.72,0.87188853]
[1748761364067,26.0,154.67,154.57,6.46956071]
[1748761364249,14.69844763,154.64,154.6,14.69844763]
[1748761364451,14.69844763,154.64,154.56,8.13037818]
[1748761364649,14.69844763,154.65,154.6,14.69844763]
[1748761365371,14.69844763,154.65,154.58,14.69844763]
[1748761365372,14.69844763,154.63,154.58,14.69844763]
[1748761365676,21.16557357,154.63,154.58,14.69844763]
[1748761366045,21.16557357,154.63,154.59,14.69844763]
[1748761367660,14.69844763,154.62,154.58,14.69844763]
[1748761367967,21.16557357,154.63,154.55,26.0]
[1748761368170,14.69844763,154.62,154.58,14.69844763]
[1748761368773,21.16557357,154.63,154.58,21.16741793]
[1748761368969,14.69844763,154.63,154.59,14.69844763]
[1748761369881,21.16554419,154.63,154.59,14.69844763]
[1748761370979,14.69844763,154.63,154.59,14.69844763]
[1748761371364,21.1655751,154.63,154.59,14.69844763]
[1748761372688,21.1655751,154.63,154.56,6.46997929]
[1748761372879,21.1655751,154.63,154.59,14.69844763]
[1748761374993,6.46712747,154.63,154.59,14.69844763]
[1748761377584,21.1655751,154.63,154.58,14.69844763]
[1748761379291,21.1655751,154.63,154.59,14.69844763]
[1748761382305,21.1655751,154.63,154.56,6.4698397]
[1748761382479,21.1655751,154.63,154.56,14.69844763]
[1748761382480,14.69844763,154.6,154.56,14.69844763]
[1748761382678,21.16697493,154.6,154.56,14.69844763]
[1748761383984,21.16697493,154.6,154.57,6.5996]
[1748761384478,21.16697493,154.6,154.57,8.2045]
[1748761384680,14.69844763,154.6,154.57,8.2045]
[1748761384881,21.16579247,154.63,154.58,14.69844763]
[1748761385099,53.95844763,154.62,154.58,14.69844763]
[1748761385416,53.95844763,154.62,154.57,22.90294763]
[1748761385624,14.69844763,154.61,154.57,22.90294763]
[1748761385789,14.69844763,154.61,154.57,8.2045]
[1748761386822,6.4683053,154.6,154.57,8.2045]
[1748761386987,21.16675293,154.6,154.57,8.2045]
[1748761387491,14.69844763,154.59,154.57,8.2045]
[1748761389003,6.46914219,154.58,154.57,8.2045]
[1748761389202,6.46914219,154.58,154.57,1.6049]
[1748761391312,6.46872372,154.59,154.57,1.6049]
[1748761396193,14.69844763,154.59,154.57,1.6049]
[1748761398230,21.16749757,154.59,154.57,1.6049]
[1748761399112,6.46904994,154.59,154.57,1.6049]
[1748761402595,14.69844763,154.58,154.53,2.4817879]
[1748761402895,14.69844763,154.58,154.54,14.69844763]
[1748761403918,14.69844763,154.58,154.53,2.4817879]
[1748761403919,14.69844763,154.55,154.53,0.8784879]
[1748761404114,14.69844763,154.54,154.53,0.8784879]
[1748761404513,21.16926424,154.54,154.53,0.8784879]
[1748761405221,6.47081661,154.54,154.53,0.8784879]
[1748761405428,21.16926424,154.54,154.53,0.8784879]
[1748761405923,0.5,154.54,154.53,0.8784879]
[1748761406267,0.5,154.54,154.53,15.57693553]
[1748761406837,6.46968417,154.57,154.53,15.57693553]
[1748761408315,24.77844763,154.58,154.54,14.69844763]
[1748761408639,10.08,154.58,154.55,1.5771]
[1748761409320,16.54920878,154.58,154.54,14.69844763]
[1748761411238,31.24765641,154.58,154.54,14.69844763]
[1748761413105,31.24765641,154.58,154.53,0.8784879]
[1748761413314,70.52765641,154.58,154.53,0.8784879]
[1748761413505,70.52765641,154.58,154.54,14.69844763]
[1748761413786,14.69844763,154.57,154.53,15.57693553]
[1748761414237,70.52765641,154.58,154.53,15.57693553]
[1748761414611,70.52765641,154.58,154.53,17.10163553]
[1748761416019,70.52765641,154.58,154.53,2.4031879]
[1748761416218,6.96990013,154.57,154.53,17.10163553]
[1748761417412,46.24990013,154.57,154.53,17.10163553]
[1748761419126,60.94834776,154.57,154.53,17.10163553]
[1748761420123,46.24990013,154.57,154.54,14.69844763]
[1748761423334,46.24990013,154.57,154.53,2.4031879]
[1748761423335,46.24990013,154.57,154.53,17.10163553]
[1748761425061,46.24990013,154.57,154.53,15.57693553]
[1748761425468,46.24990013,154.57,154.54,14.69844763]
[1748761427949,60.94834776,154.57,154.53,0.8784879]
[1748761428266,60.94834776,154.57,154.53,15.57693553]
[1748761429251,46.24990013,154.57,154.53,15.57693553]
[1748761429456,60.94834776,154.57,154.53,15.57693553]
[1748761432075,60.94834776,154.57,154.53,0.8784879]
[1748761432748,55.67948628,154.57,154.53,0.8784879]
[1748761434147,6.47039792,154.55,154.53,0.8784879]
[1748761436378,15.89998407,154.55,154.53,0.8784879]
[1748761437172,9.42958615,154.54,154.53,0.8784879]
[1748761438154,15.90040276,154.54,154.53,0.8784879]
[1748761439758,6.47081661,154.54,154.53,0.8784879]
[1748761444873,9.42958615,154.54,154.53,0.8784879]
[1748761446577,9.42958615,154.55,154.53,0.8784879]
[1748761447471,15.90040276,154.54,154.53,0.8784879]
[1748761449596,26.00040276,154.54,154.53,0.8784879]
[1748761456099,16.57081661,154.54,154.53,0.8784879]
[1748761458401,26.00040276,154.54,154.53,0.8784879]
[1748761463797,16.57081661,154.54,154.53,0.8784879]
[1748761463982,26.00040276,154.54,154.53,0.8784879]
[1748761468498,16.57081661,154.54,154.53,0.8784879]
[1748761468716,10.1,154.54,154.53,0.8784879]
[1748761469099,16.57081661,154.54,154.53,0.8784879]
[1748761472511,26.00040276,154.54,154.53,0.8784879]
[1748761473832,16.57081661,154.54,154.53,0.8784879]
[1748761474786,0.5,154.57,154.53,10.30807405]
[1748761474988,0.5,154.57,154.55,9.42958615]
[1748761475198,16.54874946,154.59,154.56,9.42958615]
[1748761475819,16.54874946,154.59,154.55,9.42958615]
[1748761476608,16.54874946,154.59,154.56,9.42958615]
[1748761479306,16.54874946,154.59,154.56,8.92958615]
[1748761483310,10.08,154.59,154.57,9.42958615]
[1748761483894,10.08,154.59,154.57,8.42958615]
[1748761488537,16.54878,154.59,154.56,9.42958615]
[1748761491937,25.97836615,154.59,154.55,9.42958615]
[1748761493129,25.97836615,154.59,154.53,0.8784879]
[1748761493324,25.97836615,154.59,154.54,9.42958615]
[1748761493531,25.97836615,154.59,154.53,0.8784879]
[1748761493749,25.97836615,154.59,154.55,9.42958615]
[1748761495239,16.54878,154.59,154.56,9.42958615]
[1748761496735,16.54878,154.59,154.57,9.42958615]
[1748761497715,16.54878,154.59,154.56,9.42958615]
[1748761499641,16.54878,154.59,154.53,7.34968878]
[1748761499829,16.54878,154.59,154.56,9.42958615]
[1748761500025,6.46878,154.59,154.56,9.42958615]
[1748761500232,6.46878,154.59,154.53,0.8784879]
[1748761500534,6.46878,154.59,154.55,9.42958615]
[1748761500849,6.46878,154.59,154.56,9.42958615]
[1748761501451,6.46878,154.59,154.55,9.42958615]
[1748761503064,6.46878,154.59,154.56,9.42958615]
[1748761507533,9.42958615,154.57,154.53,0.8784879]
[1748761507734,9.42958615,154.56,154.53,0.8784879]
[1748761508153,48.64958615,154.56,154.53,0.8784879]
[1748761508656,9.42958615,154.55,154.53,0.8784879]
[1748761509231,6.47039792,154.55,154.53,0.8784879]
[1748761517640,6.47039792,154.55,154.53,10.30807405]
[1748761517852,6.47039792,154.55,154.53,0.8784879]
[1748761519059,9.42958615,154.54,154.53,0.8784879]
[1748761520265,15.90040276,154.54,154.53,0.8784879]
[1748761526463,6.47081661,154.54,154.53,0.8784879]
[1748761529349,6.47052387,154.55,154.53,0.8784879]
[1748761530853,10.04,154.56,154.53,0.8784879]
[1748761531055,10.04,154.56,154.53,10.30807405]
[1748761532051,16.51008827,154.56,154.53,10.30807405]
[1748761534871,10.04,154.56,154.54,9.42958615]
[1748761535774,10.04,154.56,154.55,9.42958615]
[1748761536362,6.46872372,154.59,154.55,9.42958615]
[1748761536549,6.46872372,154.59,154.53,7.34950965]
[1748761536550,6.46872372,154.59,154.57,9.42958615]
[1748761537157,6.46872372,154.59,154.56,9.42958615]
[1748761537970,6.46872372,154.59,154.53,96.94956354]
[1748761538169,6.46872372,154.59,154.55,9.42958615]
[1748761539975,6.46872372,154.59,154.56,9.42958615]
[1748761541077,16.50836138,154.6,154.56,9.42958615]
[1748761541870,65.13794753,154.6,154.56,9.42958615]
[1748761542258,25.93794753,154.6,154.56,9.42958615]
[1748761542487,65.13794753,154.6,154.56,9.42958615]
[1748761543080,55.70836138,154.6,154.56,9.42958615]
[1748761543385,65.13794753,154.6,154.56,9.42958615]
[1748761544185,25.93794753,154.6,154.56,9.42958615]
[1748761544386,55.70836138,154.6,154.56,9.42958615]
[1748761544573,16.50836138,154.6,154.56,9.42958615]
[1748761544767,55.70836138,154.6,154.56,9.42958615]
[1748761546877,9.42958615,154.59,154.54,99.02958615]
[1748761547280,81.30871079,154.6,154.56,9.42958615]
[1748761547472,65.13794753,154.6,154.56,9.42958615]
[1748761549290,65.13794753,154.6,154.55,9.42958615]
[1748761550585,81.30871079,154.6,154.55,9.42958615]
[1748761550790,9.42958615,154.59,154.55,9.42958615]
[1748761551377,9.42958615,154.59,154.54,99.02958615]
[1748761552474,6.46914219,154.58,154.54,99.02958615]
[1748761555292,6.46914219,154.58,154.55,9.42958615]
[1748761555495,39.2,154.57,154.55,9.42958615]
[1748761555979,39.2,154.57,154.56,9.42958615]
[1748761557395,45.66872372,154.59,154.56,9.42958615]
[1748761563198,45.66872372,154.59,154.55,9.42958615]
[1748761563590,71.27011917,154.59,154.54,9.42958615]
[1748761564916,61.84053302,154.59,154.54,9.42958615]
[1748761565084,71.27011917,154.59,154.54,9.42958615]
[1748761566880,9.42958615,154.57,154.53,90.4784879]
[1748761567084,48.62958615,154.56,154.53,0.8784879]
[1748761567301,39.2,154.55,154.53,0.8784879]
[1748761567809,9.42958615,154.54,154.53,0.8784879]
[1748761568916,15.90040276,154.54,154.53,0.8784879]
[1748761570719,21.21013779,154.54,154.53,0.8784879]
[1748761571087,55.71047851,154.55,154.53,0.8784879]
[1748761571581,10.04,154.55,154.53,0.8784879]
[1748761571786,49.24,154.55,154.53,15.61780908]
[1748761572000,10.04,154.55,154.53,15.61780908]
[1748761573523,16.51064061,154.55,154.53,15.61780908]
[1748761573690,16.51064061,154.55,154.53,0.8784879]
[1748761576214,10.04,154.55,154.53,15.61780908]
[1748761581214,45.67009185,154.56,154.53,15.61780908]
[1748761585403,6.47009185,154.56,154.53,15.61780908]
[1748761585606,39.2,154.56,154.54,14.73932118]
[1748761585918,49.24,154.58,154.55,14.73932118]
[1748761586213,49.24,154.58,154.56,14.73932118]
[1748761586445,10.04,154.58,154.56,14.73932118]
[1748761587205,10.04,154.58,154.55,14.73932118]
[1748761588021,16.50921798,154.58,154.55,14.73932118]
[1748761594028,10.04,154.58,154.55,14.73932118]
[1748761596633,10.04,154.58,154.55,9.42601812]
[1748761596829,16.50922195,154.58,154.55,9.42601812]
[1748761597008,16.50922195,154.58,154.54,9.42601812]
[1748761597512,9.42601812,154.57,154.53,99.90450602]
[1748761598355,39.2,154.56,154.53,99.90450602]
[1748761599045,45.67026786,154.56,154.53,99.90450602]
[1748761601032,39.2,154.56,154.54,9.42601812]
[1748761602727,39.2,154.56,154.54,14.73018355]
[1748761604917,10.04,154.58,154.55,14.73018355]
[1748761605218,49.24,154.58,154.56,14.73018355]
[1748761608337,10.04,154.58,154.56,14.73018355]
[1748761610038,45.6688516,154.59,154.56,14.73018355]
[1748761610238,6.4688516,154.59,154.56,14.73018355]
[1748761610422,39.2,154.59,154.56,14.73018355]
[1748761612328,6.46914219,154.58,154.54,89.6]
[1748761612529,6.46914219,154.58,154.55,14.73018355]
[1748761612960,6.46914219,154.58,154.54,104.33018355]
[1748761614450,6.46914219,154.58,154.54,14.73018355]
[1748761616965,21.19932574,154.58,154.53,105.20867145]
[1748761618777,14.73018355,154.56,154.53,90.4784879]
[1748761618941,39.2,154.55,154.53,90.4784879]
[1748761620242,6.47081661,154.54,154.53,0.8784879]
[1748761620973,21.20100016,154.54,154.53,0.8784879]
[1748761621178,31.22100016,154.54,154.53,0.8784879]
[1748761624975,16.49081661,154.54,154.53,0.8784879]
[1748761625550,10.02,154.54,154.53,0.8784879]
[1748761625758,49.22,154.54,154.53,15.60867145]
[1748761626070,10.04,154.57,154.53,15.60867145]
[1748761626263,39.2,154.56,154.53,15.60867145]
[1748761626470,45.67002901,154.56,154.53,15.60867145]
[1748761626774,45.67002901,154.56,154.53,0.8784879]
[1748761626975,60.40021256,154.56,154.53,0.8784879]
[1748761627173,14.73018355,154.55,154.53,0.8784879]
[1748761628168,6.47081661,154.54,154.53,0.8784879]
[1748761629683,21.20100016,154.54,154.53,0.8784879]
[1748761630784,15.90446872,154.54,154.53,0.8784879]
[1748761631986,15.90405003,154.55,154.53,0.8784879]
[1748761632685,6.47039792,154.55,154.53,0.8784879]
[1748761632987,39.2,154.54,154.53,0.8784879]
[1748761633358,48.63365211,154.54,154.53,0.8784879]
[1748761633770,39.2,154.54,154.53,0.8784879]
[1748761636584,6.47039792,154.55,154.53,0.8784879]
[1748761636788,45.67039792,154.55,154.53,0.8784879]
[1748761639058,55.10405003,154.55,154.53,0.8784879]
[1748761641092,45.67039792,154.55,154.53,0.8784879]
[1748761641671,6.47039792,154.55,154.53,0.8784879]
[1748761641871,39.2,154.54,154.53,0.8784879]
[1748761643394,45.67081661,154.54,154.53,0.8784879]
[1748761644972,55.10446872,154.54,154.53,0.8784879]
[1748761646095,45.67081661,154.54,154.53,0.8784879]
[1748761647594,55.10446872,154.54,154.53,0.8784879]
[1748761648980,45.67081661,154.54,154.53,0.8784879]
[1748761650085,55.71081661,154.54,154.53,0.8784879]
[1748761651595,65.14446872,154.54,154.53,0.8784879]
[1748761658002,65.28663029,154.54,154.53,0.8784879]
[1748761658995,84.07844072,154.54,154.53,0.8784879]
[1748761661186,74.64478861,154.54,154.53,0.8784879]
[1748761661388,84.07844072,154.54,154.53,0.8784879]
[1748761662292,90.68294072,154.54,154.53,0.8784879]
[1748761662702,26.0,154.5,154.45,2.53848853]
[1748761662881,49.26,154.49,154.45,11.97214064]
[1748761663483,49.26,154.49,154.47,9.43365211]
[1748761663696,49.26,154.49,154.45,10.56478853]
[1748761663908,10.04,154.49,154.47,9.43365211]
[1748761664119,49.26,154.49,154.47,9.43365211]
[1748761664711,49.26,154.49,154.46,9.43365211]
[1748761665214,10.04,154.49,154.47,9.43365211]
[1748761665405,49.26,154.49,154.47,9.43365211]
[1748761668514,55.73306434,154.49,154.45,103.23434064]
[1748761669048,9.43365211,154.48,154.45,93.80068853]
[1748761669413,55.73306434,154.49,154.45,103.23434064]
[1748761669601,55.73306434,154.49,154.46,9.43365211]
[1748761669922,55.73306434,154.49,154.45,103.23434064]
[1748761671106,49.26,154.49,154.47,9.43365211]
[1748761671485,55.73295863,154.49,154.47,9.43365211]
[1748761671686,55.73295863,154.49,154.46,9.43365211]
[1748761676895,49.26,154.49,154.46,9.43365211]
[1748761677620,39.22,154.48,154.47,9.43365211]
[1748761680324,10.04,154.49,154.47,15.90729473]
[1748761680517,49.26,154.49,154.48,9.43365211]
[1748761680697,39.22,154.49,154.48,9.43365211]
[1748761682521,32.47178505,154.52,154.48,9.43365211]
[1748761682821,39.22,154.51,154.48,9.43365211]
[1748761684596,16.51138215,154.53,154.49,9.43365211]
[1748761684911,16.51138215,154.53,154.5,9.43365211]
[1748761684912,39.22,154.52,154.5,9.43365211]
[1748761685721,16.51128116,154.53,154.49,9.43365211]
[1748761685899,39.22,154.52,154.49,9.43365211]
[1748761686315,39.22,154.51,154.48,99.03365211]
[1748761686731,45.6923819,154.51,154.48,99.03365211]
[1748761687508,45.6923819,154.51,154.46,9.43365211]
[1748761687509,55.12603401,154.51,154.46,9.43365211]
[1748761688243,55.12603401,154.51,154.47,9.43365211]
[1748761690610,45.6923819,154.51,154.47,9.43365211]
[1748761692137,45.6923819,154.51,154.48,9.43365211]
[1748761693145,45.6923819,154.51,154.47,9.43365211]
[1748761694733,55.12603401,154.51,154.46,9.43365211]
[1748761694939,55.12603401,154.51,154.47,9.43365211]
[1748761695709,45.6923819,154.51,154.47,9.43365211]
[1748761697748,45.6923819,154.51,154.48,9.43365211]
[1748761699642,9.43365211,154.49,154.45,2.53848853]
[1748761699943,9.43365211,154.47,154.45,2.53848853]
[1748761700329,35.43365211,154.46,154.45,2.53848853]
[1748761701738,41.90782017,154.46,154.45,2.53848853]
[1748761703846,32.47416806,154.46,154.45,2.53848853]
[1748761705549,41.90782017,154.46,154.45,2.53848853]
[1748761705764,42.04998174,154.46,154.45,2.53848853]
[1748761706660,47.37246406,154.46,154.45,2.53848853]
[1748761711452,32.61632963,154.46,154.45,2.53848853]
[1748761711835,47.37246406,154.46,154.45,2.53848853]
[1748761714363,66.16427449,154.46,154.45,2.53848853]
[1748761714862,51.40814006,154.46,154.45,2.53848853]
[1748761715040,66.16427449,154.46,154.45,2.53848853]
[1748761716162,47.37246406,154.46,154.45,2.53848853]
[1748761716366,47.23030249,154.46,154.45,2.53848853]
[1748761717242,86.51030249,154.46,154.45,2.53848853]
[1748761717665,86.65246406,154.46,154.45,2.53848853]
[1748761721546,105.44427449,154.46,154.45,2.53848853]
[1748761723874,109.12877692,154.46,154.45,2.53848853]
[1748761725871,105.44427449,154.46,154.45,2.53848853]
[1748761728777,100.13568527,154.46,154.45,2.53848853]
[1748761737377,110.17568527,154.46,154.45,2.53848853]
[1748761737559,91.24171327,154.46,154.45,2.53848853]
[1748761737762,91.38387484,154.46,154.45,2.53848853]
[1748761737964,91.24171327,154.46,154.45,2.53848853]
[1748761738172,91.38387484,154.46,154.45,2.53848853]
[1748761739971,110.17568527,154.46,154.45,2.53848853]
[1748761747870,110.17568527,154.46,154.4,1.5002]
[1748761747871,26.0,154.42,154.4,1.5002]
[1748761748071,48.70754521,154.41,154.4,1.5002]
[1748761748274,58.76754521,154.41,154.4,1.5002]
[1748761748472,18.64964886,154.4,154.39,6.5]
[1748761748672,28.09719407,154.4,154.37,1.5526]
[1748761749378,9.44754521,154.39,154.37,1.5526]
[1748761749587,6.47752299,154.38,154.37,1.5526]
[1748761751637,49.32,154.41,154.37,1.5526]
[1748761751787,58.76754521,154.41,154.37,1.5526]
[1748761751985,6.47683757,154.4,154.37,1.5526]
[1748761752389,15.92438278,154.4,154.37,1.5526]
[1748761752708,55.20438278,154.4,154.37,1.5526]
[1748761753517,55.20438278,154.4,154.36,9.44754521]
[1748761753716,55.20438278,154.4,154.37,8.1549]
[1748761753717,6.47683757,154.4,154.37,8.1549]
[1748761753898,55.26438278,154.4,154.37,8.1549]
[1748761754097,45.81683757,154.4,154.37,8.1549]
[1748761754417,55.26438278,154.4,154.37,8.1549]
[1748761758389,55.26438278,154.4,154.37,1.5984]
[1748761759898,45.81683757,154.4,154.33,11.04594521]
[1748761760106,9.44754521,154.37,154.33,11.04594521]
[1748761761186,15.92555841,154.37,154.33,11.04594521]
[1748761761610,15.92521221,154.38,154.33,11.04594521]
[1748761761788,15.92521221,154.38,154.33,17.5254599]
[1748761761989,15.92521221,154.38,154.34,9.44754521]
[1748761763622,6.477667,154.38,154.34,9.44754521]
[1748761764505,15.92521221,154.38,154.33,9.44754521]
[1748761767203,15.92521221,154.38,154.34,9.44754521]
[1748761767407,6.477667,154.38,154.34,9.44754521]
[1748761770103,6.47710343,154.39,154.34,9.44754521]
[1748761770305,39.34,154.39,154.37,9.44754521]
[1748761770502,6.47682196,154.4,154.37,9.44754521]
[1748761770802,49.46,154.41,154.39,9.44754521]
[1748761771731,45.87542575,154.43,154.39,9.44754521]
[1748761772032,71.87542575,154.43,154.39,9.44754521]
[1748761772831,6.47508125,154.44,154.42,14.75879462]
[1748761774217,16.53470879,154.45,154.42,14.75879462]
[1748761774618,10.06,154.45,154.43,14.75879462]
[1748761776534,80.15879462,154.47,154.43,14.75879462]
[1748761776535,6.47389089,154.47,154.43,14.75879462]
[1748761776742,6.47389089,154.47,154.44,14.75879462]
[1748761777248,6.47389089,154.47,154.43,14.75879462]
[1748761778010,6.47389089,154.47,154.41,14.23756881]
[1748761778215,6.47389089,154.47,154.44,14.75879462]
[1748761778622,6.47335874,154.48,154.44,14.75879462]
[1748761778829,6.47335874,154.48,154.45,14.75879462]
[1748761779154,10.06,154.49,154.46,14.75879462]
[1748761779444,6.47260949,154.5,154.47,14.75879462]
[1748761779634,6.47218911,154.51,154.47,14.75879462]
[1748761779816,45.91218911,154.51,154.48,14.75879462]
[1748761780221,6.47218911,154.51,154.48,14.75879462]
[1748761783017,6.47218911,154.51,154.49,14.75879462]
[1748761784315,71.89180672,154.52,154.49,14.75879462]
[1748761784515,32.47180672,154.52,154.49,14.75879462]
[1748761785440,32.47180672,154.52,154.48,14.75879462]
[1748761791451,16.58956071,154.57,154.49,21.23170548]
[1748761791752,31.34835533,154.57,154.52,14.75879462]
[1748761791936,14.75879462,154.56,154.52,14.75879462]
[1748761792137,14.75879462,154.56,154.51,14.75879462]
[1748761792532,14.75879462,154.55,154.51,14.75879462]
[1748761792740,6.47081661,154.54,154.51,14.75879462]
[1748761796757,45.89039792,154.55,154.52,14.75879462]
[1748761797756,45.89039792,154.55,154.51,14.75879462]
[1748761798137,21.22919254,154.55,154.51,14.75879462]
[1748761798352,60.62919254,154.55,154.51,14.75879462]
[1748761798556,14.75879462,154.52,154.47,104.35879462]
[1748761798766,21.23086762,154.51,154.47,104.35879462]
[1748761798969,21.23086762,154.51,154.47,89.6]
[1748761799274,60.67086762,154.51,154.47,89.6]
[1748761799866,60.67086762,154.51,154.47,104.35879462]
[1748761800158,45.912073,154.51,154.48,14.75879462]
[1748761801458,60.67086762,154.51,154.47,104.35879462]
[1748761801759,21.23170548,154.49,154.45,14.75879462]
[1748761802054,21.23170548,154.49,154.44,14.75879462]
[1748761802236,21.23170548,154.49,154.45,14.75879462]
[1748761805061,6.47291086,154.49,154.45,14.75879462]
[1748761806958,6.47291086,154.49,154.46,14.75879462]
[1748761807157,6.47291086,154.49,154.47,14.75879462]
[1748761808040,6.47262897,154.5,154.47,14.75879462]
[1748761808231,6.47262897,154.5,154.46,14.75879462]
[1748761808435,14.75879462,154.49,154.44,16.41369462]
[1748761809171,6.47332988,154.48,154.44,16.41369462]
[1748761809344,6.47332988,154.48,154.44,106.01369462]
[1748761810962,6.47332988,154.48,154.45,14.75879462]
[1748761811160,6.47291086,154.49,154.45,14.75879462]
[1748761814470,6.47291086,154.49,154.46,14.75879462]
[1748761815349,45.89222806,154.51,154.47,14.75879462]
[1748761815955,45.87222806,154.51,154.47,14.75879462]
[1748761816867,6.47222806,154.51,154.47,14.75879462]
[1748761817164,45.87222806,154.51,154.47,14.75879462]
[1748761819847,39.4,154.51,154.48,14.75879462]
[1748761820771,45.87209562,154.51,154.48,14.75879462]
[1748761821373,6.47209562,154.51,154.48,14.75879462]
[1748761823369,6.47165415,154.52,154.48,14.75879462]
[1748761823575,45.85165415,154.52,154.48,14.75879462]
[1748761824156,60.61044877,154.52,154.47,14.75879462]
[1748761825959,14.75879462,154.5,154.46,89.6]
[1748761827183,45.83291086,154.49,154.46,89.6]